[Event "MČR družstev mladších žáků 2024"]
[Site "Harrachov, Czech Republic"]
[Date "2024.06.16"]
[Round "8.10"]
[White "Sevcikova Terezie"]
[Black "Kozusnik Jan"]
[Result "0-1"]
[TimeControl "25+10"]
[WhiteFideId "23766425"]
[BlackFideId "23731796"]
[WhiteElo "1447"]
[BlackElo "1345"]

1. d4 {[%clk 00:25:17]} {[%emt 00:00:02]} d5 {[%clk 00:25:20]} {[%emt
00:00:02]} 2. Bf4 {[%clk 00:25:23]} {[%emt 00:00:03]} Nf6 {[%clk 00:25:23]}
{[%emt 00:00:07]} 3. e3 {[%clk 00:25:27]} {[%emt 00:00:05]} Bf5 {[%clk
00:24:46]} {[%emt 00:00:47]} 4. c3 {[%clk 00:24:58]} {[%emt 00:00:40]} e6
{[%clk 00:24:12]} {[%emt 00:00:44]} 5. Nf3 {[%clk 00:24:24]} {[%emt 00:00:44]}
Bd6 {[%clk 00:22:59]} {[%emt 00:01:23]} 6. Bg3 {[%clk 00:24:28]} {[%emt
00:00:06]} Nc6 {[%clk 00:22:30]} {[%emt 00:00:38]} 7. Bd3 {[%clk 00:21:43]}
{[%emt 00:02:55]} Bxd3 {[%clk 00:21:09]} {[%emt 00:01:31]} 8. Qxd3 {[%clk
00:21:48]} {[%emt 00:00:05]} Ne4 {[%clk 00:20:57]} {[%emt 00:00:22]} 9. Nbd2
{[%clk 00:21:48]} {[%emt 00:00:09]} Nxg3 {[%clk 00:19:59]} {[%emt 00:01:08]} 10.
hxg3 {[%clk 00:21:53]} {[%emt 00:00:06]} h6 {[%clk 00:19:26]} {[%emt 00:00:43]}
11. O-O-O {[%clk 00:20:07]} {[%emt 00:01:55]} Qb8 {[%clk 00:18:13]} {[%emt
00:01:23]} 12. g4 {[%clk 00:19:58]} {[%emt 00:00:19]} b5 {[%clk 00:18:16]}
{[%emt 00:00:07]} 13. g5 {[%clk 00:19:40]} {[%emt 00:00:28]} h5 {[%clk
00:17:59]} {[%emt 00:00:27]} 14. g4 {[%clk 00:19:44]} {[%emt 00:00:06]} b4
{[%clk 00:16:14]} {[%emt 00:01:55]} 15. Rxh5 {[%clk 00:19:25]} {[%emt
00:00:29]} Rxh5 {[%clk 00:15:56]} {[%emt 00:00:29]} 16. gxh5 {[%clk 00:19:33]}
{[%emt 00:00:02]} bxc3 {[%clk 00:15:59]} {[%emt 00:00:07]} 17. Qxc3 {[%clk
00:19:04]} {[%emt 00:00:38]} Nb4 {[%clk 00:15:21]} {[%emt 00:00:49]} 18. Qb3
{[%clk 00:16:20]} {[%emt 00:02:53]} a5 {[%clk 00:12:26]} {[%emt 00:03:05]} 19.
a4 {[%clk 00:15:43]} {[%emt 00:00:47]} Qb6 {[%clk 00:11:24]} {[%emt 00:01:13]}
20. Rh1 {[%clk 00:12:30]} {[%emt 00:03:22]} c5 {[%clk 00:05:40]} {[%emt
00:05:54]} 21. h6 {[%clk 00:04:52]} {[%emt 00:07:48]} c4 {[%clk 00:03:16]}
{[%emt 00:02:34]} 22. Qd1 {[%clk 00:02:15]} {[%emt 00:02:46]} Nd3+ {[%clk
00:03:19]} {[%emt 00:00:08]} 0-1



[ePGN "0.1;DGT LiveChess/2.2.6"]

[Event "MČR družstev mladších žáků 2024"]
[Site "Harrachov, Czech Republic"]
[Date "2024.06.16"]
[Round "8.11"]
[White "Lackova Lucie"]
[Black "Kobersky Matyas"]
[Result "0-1"]
[TimeControl "25+10"]
[WhiteFideId "23731800"]
[BlackFideId "23747501"]
[WhiteElo "1601"]
[BlackElo "1206"]

1. e4 {[%clk 00:25:15]} {[%emt 00:00:04]} c5 {[%clk 00:25:09]} {[%emt
00:00:11]} 2. Nf3 {[%clk 00:25:24]} {[%emt 00:00:02]} d6 {[%clk 00:25:13]}
{[%emt 00:00:06]} 3. d4 {[%clk 00:25:32]} {[%emt 00:00:03]} cxd4 {[%clk
00:25:07]} {[%emt 00:00:15]} 4. Nxd4 {[%clk 00:25:40]} {[%emt 00:00:03]} Nf6
{[%clk 00:25:06]} {[%emt 00:00:11]} 5. Nc3 {[%clk 00:25:47]} {[%emt 00:00:03]}
a6 {[%clk 00:25:04]} {[%emt 00:00:12]} 6. Be2 {[%clk 00:25:32]} {[%emt
00:00:25]} e6 {[%clk 00:24:25]} {[%emt 00:00:49]} 7. O-O {[%clk 00:25:21]}
{[%emt 00:00:21]} Be7 {[%clk 00:24:24]} {[%emt 00:00:10]} 8. Be3 {[%clk
00:24:35]} {[%emt 00:00:55]} b5 {[%clk 00:23:07]} {[%emt 00:01:28]} 9. a3
{[%clk 00:24:00]} {[%emt 00:00:45]} Bb7 {[%clk 00:22:39]} {[%emt 00:00:38]} 10.
f3 {[%clk 00:21:41]} {[%emt 00:02:30]} Nbd7 {[%clk 00:21:05]} {[%emt 00:01:44]}
11. Nb3 {[%clk 00:20:49]} {[%emt 00:01:02]} Nb6 {[%clk 00:20:08]} {[%emt
00:01:07]} 12. Na5 {[%clk 00:16:48]} {[%emt 00:04:11]} Qc7 {[%clk 00:17:16]}
{[%emt 00:03:02]} 13. Nxb7 {[%clk 00:15:33]} {[%emt 00:01:25]} Qxb7 {[%clk
00:17:11]} {[%emt 00:00:09]} 14. Kh1 {[%clk 00:09:21]} {[%emt 00:06:28]} O-O
{[%clk 00:16:27]} {[%emt 00:00:54]} 15. Bf2 {[%clk 00:06:01]} {[%emt 00:03:30]}
Rad8 {[%clk 00:14:07]} {[%emt 00:02:30]} 16. Bd3 {[%clk 00:04:00]} {[%emt
00:02:11]} Qc7 {[%clk 00:12:44]} {[%emt 00:01:34]} 17. Bxb6 {[%clk 00:01:51]}
{[%emt 00:02:19]} Qxb6 {[%clk 00:12:35]} {[%emt 00:00:18]} 18. a4 {[%clk
00:01:48]} {[%emt 00:00:13]} b4 {[%clk 00:11:19]} {[%emt 00:01:27]} 19. Na2
{[%clk 00:01:23]} {[%emt 00:00:34]} a5 {[%clk 00:11:12]} {[%emt 00:00:17]} 20.
Nc1 {[%clk 00:01:12]} {[%emt 00:00:21]} d5 {[%clk 00:11:06]} {[%emt 00:00:16]}
21. exd5 {[%clk 00:01:12]} {[%emt 00:00:10]} Nxd5 {[%clk 00:11:10]} {[%emt
00:00:05]} 22. Re1 {[%clk 00:00:56]} {[%emt 00:00:26]} Nf4 {[%clk 00:10:52]}
{[%emt 00:00:27]} 23. Re4 {[%clk 00:00:38]} {[%emt 00:00:27]} Nxd3 {[%clk
00:10:25]} {[%emt 00:00:38]} 24. Nxd3 {[%clk 00:00:46]} {[%emt 00:00:03]} Rd4
{[%clk 00:09:48]} {[%emt 00:00:46]} 25. Rxd4 {[%clk 00:00:34]} {[%emt
00:00:23]} Qxd4 {[%clk 00:09:52]} {[%emt 00:00:05]} 26. Qe2 {[%clk 00:00:37]}
{[%emt 00:00:07]} Qh4 {[%clk 00:09:35]} {[%emt 00:00:27]} 27. Qe5 {[%clk
00:00:19]} {[%emt 00:00:25]} Ra8 {[%clk 00:09:00]} {[%emt 00:00:48]} 28. Qc7
{[%clk 00:00:26]} {[%emt 00:00:02]} h6 {[%clk 00:08:30]} {[%emt 00:00:40]} 29.
Rd1 {[%clk 00:00:23]} {[%emt 00:00:13]} Bg5 {[%clk 00:07:19]} {[%emt 00:01:22]}
30. Qb7 {[%clk 00:00:26]} {[%emt 00:00:07]} Rd8 {[%clk 00:07:06]} {[%emt
00:00:17]} 31. Qb6 {[%clk 00:00:34]} {[%emt 00:00:07]} Bf4 {[%clk 00:06:45]}
{[%emt 00:00:28]} 32. Qg1 {[%clk 00:00:39]} {[%emt 00:00:06]} Bg3 {[%clk
00:06:38]} {[%emt 00:00:15]} 33. h3 {[%clk 00:00:38]} {[%emt 00:00:15]} Qc4
{[%clk 00:05:55]} {[%emt 00:00:51]} 34. Rc1 {[%clk 00:00:38]} {[%emt 00:00:13]}
b3 {[%clk 00:05:43]} {[%emt 00:00:22]} 35. Ne1 {[%clk 00:00:17]} {[%emt
00:00:30]} Bxe1 {[%clk 00:05:41]} {[%emt 00:00:11]} 36. Qxe1 {[%clk 00:00:25]}
{[%emt 00:00:02]} bxc2 {[%clk 00:05:46]} {[%emt 00:00:06]} 37. Kh2 {[%clk
00:00:15]} {[%emt 00:00:20]} Qf4+ {[%clk 00:05:48]} {[%emt 00:00:03]} 38. Kh1
{[%clk 00:00:24]} {[%emt 00:00:05]} Qxc1 {[%clk 00:05:54]} {[%emt 00:00:05]} 39.
Qxc1 {[%clk 00:00:32]} {[%emt 00:00:01]} Rd1+ {[%clk 00:06:03]} {[%emt
00:00:01]} 40. Qxd1 {[%clk 00:00:41]} {[%emt 00:00:01]} cxd1=Q+ {[%clk
00:06:10]} {[%emt 00:00:02]} 41. Kh2 {[%clk 00:00:50]} {[%emt 00:00:01]} Qxa4
{[%clk 00:06:11]} {[%emt 00:00:08]} 42. Kg3 {[%clk 00:00:58]} {[%emt 00:00:03]}
e5 {[%clk 00:06:18]} {[%emt 00:00:03]} 43. b3 {[%clk 00:01:05]} {[%emt
00:00:02]} Qxb3 {[%clk 00:06:23]} {[%emt 00:00:05]} 44. Kg4 {[%clk 00:01:13]}
{[%emt 00:00:02]} a4 {[%clk 00:06:32]} {[%emt 00:00:01]} 45. h4 {[%clk
00:01:22]} {[%emt 00:00:02]} a3 {[%emt 00:00:05]} 46. g3 {[%emt 00:00:04]} a2
{[%clk 00:06:23]} {[%emt 00:00:10]} 47. f4 {[%clk 00:01:30]} {[%emt 00:00:02]}
exf4 {[%clk 00:06:29]} {[%emt 00:00:03]} 48. Kxf4 {[%clk 00:01:38]} {[%emt
00:00:02]} a1=Q {[%emt 00:00:03]} 49. Kg4 {[%clk 00:01:45]} {[%emt 00:00:02]}
Qd4+ {[%clk 00:06:44]} {[%emt 00:00:03]} 50. Kf5 {[%clk 00:01:53]} {[%emt
00:00:03]} Qe6# {[%clk 00:06:50]} {[%emt 00:00:04]} 0-1



[ePGN "0.1;DGT LiveChess/2.2.6"]

[Event "MČR družstev mladších žáků 2024"]
[Site "Harrachov, Czech Republic"]
[Date "2024.06.16"]
[Round "8.13"]
[White "Velim Vojtech"]
[Black "Frantsev Iegor"]
[Result "1-0"]
[TimeControl "25+10"]
[WhiteFideId "23749407"]
[BlackFideId "23736305"]
[WhiteElo "1814"]
[BlackElo "1413"]

1. d4 {[%clk 00:25:16]} {[%emt 00:00:04]} d5 {[%clk 00:25:19]} 2. c4 {[%clk
00:25:25]} c6 {[%clk 00:25:28]} 3. Nc3 {[%clk 00:25:33]} {[%emt 00:00:04]} Nf6
{[%clk 00:25:37]} 4. Nf3 {[%clk 00:25:34]} {[%emt 00:00:08]} a6 {[%clk
00:25:46]} {[%emt 00:00:02]} 5. cxd5 {[%clk 00:25:41]} {[%emt 00:00:03]} cxd5
{[%clk 00:25:53]} {[%emt 00:00:02]} 6. Bf4 {[%clk 00:25:45]} {[%emt 00:00:05]}
Nc6 {[%clk 00:25:57]} {[%emt 00:00:06]} 7. e3 {[%clk 00:25:54]} {[%emt
00:00:01]} Bg4 {[%clk 00:25:47]} {[%emt 00:00:20]} 8. h3 {[%clk 00:25:43]}
{[%emt 00:00:22]} Bxf3 {[%clk 00:25:54]} {[%emt 00:00:02]} 9. Qxf3 {[%clk
00:25:51]} {[%emt 00:00:02]} e6 {[%clk 00:26:02]} {[%emt 00:00:03]} 10. Be2
{[%clk 00:25:49]} {[%emt 00:00:12]} Bd6 {[%clk 00:25:53]} {[%emt 00:00:19]} 11.
Bg5 {[%clk 00:25:33]} {[%emt 00:00:26]} h6 {[%clk 00:25:39]} {[%emt 00:00:24]}
12. Bxf6 {[%clk 00:25:40]} {[%emt 00:00:02]} Qxf6 {[%clk 00:25:47]} {[%emt
00:00:03]} 13. Qxf6 {[%clk 00:25:47]} {[%emt 00:00:03]} gxf6 {[%clk 00:25:54]}
{[%emt 00:00:02]} 14. Rc1 {[%clk 00:25:52]} {[%emt 00:00:05]} Ke7 {[%clk
00:24:59]} {[%emt 00:01:05]} 15. Bd3 {[%clk 00:25:45]} {[%emt 00:00:16]} f5
{[%clk 00:24:59]} {[%emt 00:00:11]} 16. g3 {[%clk 00:25:48]} {[%emt 00:00:08]}
Rac8 {[%clk 00:24:17]} {[%emt 00:00:51]} 17. Ke2 {[%clk 00:25:29]} {[%emt
00:00:29]} Nb4 {[%clk 00:23:52]} {[%emt 00:00:35]} 18. Bb1 {[%clk 00:25:32]}
{[%emt 00:00:07]} b5 {[%clk 00:22:08]} {[%emt 00:01:54]} 19. a4 {[%clk
00:24:13]} {[%emt 00:01:29]} Rb8 {[%clk 00:20:43]} {[%emt 00:01:35]} 20. axb5
{[%clk 00:23:43]} {[%emt 00:00:40]} axb5 {[%clk 00:20:50]} {[%emt 00:00:03]} 21.
Bd3 {[%clk 00:23:11]} {[%emt 00:00:41]} Nxd3 {[%clk 00:20:06]} {[%emt
00:00:54]} 22. Kxd3 {[%clk 00:23:18]} {[%emt 00:00:03]} Rhc8 {[%clk 00:17:57]}
{[%emt 00:02:18]} 23. b3 {[%clk 00:22:50]} {[%emt 00:00:38]} Rc7 {[%clk
00:16:00]} {[%emt 00:02:08]} 24. Ne2 {[%clk 00:21:48]} {[%emt 00:01:12]} Ra7
{[%clk 00:15:10]} {[%emt 00:01:00]} 25. Ra1 {[%clk 00:20:38]} {[%emt 00:01:21]}
Rba8 {[%clk 00:14:16]} {[%emt 00:01:04]} 26. Rxa7+ {[%clk 00:20:46]} {[%emt
00:00:02]} Rxa7 {[%clk 00:14:25]} {[%emt 00:00:01]} 27. Nc3 {[%clk 00:20:54]}
{[%emt 00:00:02]} Ra3 {[%clk 00:13:49]} {[%emt 00:00:46]} 28. Rb1 {[%clk
00:20:33]} {[%emt 00:00:31]} b4 {[%clk 00:09:03]} {[%emt 00:04:56]} 29. Na4
{[%clk 00:20:27]} {[%emt 00:00:16]} Ra2 {[%clk 00:07:22]} {[%emt 00:01:52]} 30.
Rb2 {[%clk 00:19:48]} {[%emt 00:00:49]} Rxb2 {[%clk 00:07:02]} {[%emt
00:00:30]} 31. Nxb2 {[%clk 00:19:43]} {[%emt 00:00:15]} Kf6 {[%clk 00:06:16]}
{[%emt 00:00:56]} 32. Ke2 {[%clk 00:19:38]} {[%emt 00:00:15]} Kg5 {[%clk
00:04:28]} {[%emt 00:01:57]} 33. Nd3 {[%clk 00:19:07]} {[%emt 00:00:43]} h5
{[%clk 00:02:57]} {[%emt 00:01:41]} 34. Ne1 {[%clk 00:15:08]} {[%emt 00:04:09]}
Kg6 {[%clk 00:02:01]} {[%emt 00:01:06]} 35. Nf3 {[%clk 00:14:47]} {[%emt
00:00:32]} Kf6 {[%clk 00:01:08]} {[%emt 00:01:02]} 36. Kd3 {[%clk 00:12:32]}
{[%emt 00:02:25]} Kg6 {[%clk 00:00:54]} {[%emt 00:00:24]} 37. Nh4+ {[%clk
00:12:16]} {[%emt 00:00:26]} Kf6 {[%clk 00:00:55]} {[%emt 00:00:10]} 38. Nf3
{[%clk 00:12:00]} {[%emt 00:00:26]} Kg6 {[%clk 00:00:57]} {[%emt 00:00:08]} 39.
Ke2 {[%clk 00:12:06]} {[%emt 00:00:04]} Kf6 {[%clk 00:00:48]} {[%emt 00:00:19]}
40. Ne1 {[%clk 00:11:17]} {[%emt 00:00:58]} Kg5 {[%clk 00:00:53]} {[%emt
00:00:05]} 41. Nd3 {[%clk 00:11:02]} {[%emt 00:00:25]} h4 {[%clk 00:00:29]}
{[%emt 00:00:35]} 42. f4+ {[%clk 00:10:41]} {[%emt 00:00:31]} Kh5 {[%clk
00:00:38]} {[%emt 00:00:01]} 43. Kf3 {[%clk 00:10:47]} {[%emt 00:00:04]} hxg3
{[%clk 00:00:39]} {[%emt 00:00:09]} 44. Kxg3 {[%clk 00:10:52]} {[%emt
00:00:04]} f6 {[%clk 00:00:47]} {[%emt 00:00:04]} 45. Nc5 {[%clk 00:10:32]}
{[%emt 00:00:29]} e5 {[%clk 00:00:53]} {[%emt 00:00:04]} 46. Nd7 {[%clk
00:10:39]} {[%emt 00:00:03]} exf4+ {[%clk 00:00:46]} {[%emt 00:00:16]} 47. exf4
{[%clk 00:10:48]} {[%emt 00:00:01]} Kg6 {[%clk 00:00:49]} {[%emt 00:00:07]} 48.
Nb6 {[%clk 00:10:57]} {[%emt 00:00:01]} Kf7 {[%clk 00:00:54]} {[%emt 00:00:05]}
49. Nxd5 {[%clk 00:11:06]} {[%emt 00:00:02]} Ke6 {[%clk 00:01:03]} 50. Ne3
{[%clk 00:10:59]} {[%emt 00:00:17]} Bc7 {[%clk 00:01:02]} {[%emt 00:00:06]} 51.
Kf3 {[%clk 00:10:21]} {[%emt 00:00:53]} Bb6 {[%clk 00:01:07]} {[%emt 00:00:05]}
52. Nc2 {[%clk 00:10:29]} Ba5 {[%clk 00:01:11]} {[%emt 00:00:06]} 53. Ke3
{[%clk 00:10:37]} {[%emt 00:00:02]} Kf7 {[%clk 00:00:54]} {[%emt 00:00:27]} 54.
Kd3 {[%clk 00:10:42]} {[%emt 00:00:05]} Ke6 {[%clk 00:01:00]} {[%emt 00:00:05]}
55. Kc4 {[%clk 00:10:50]} {[%emt 00:00:02]} Bb6 {[%clk 00:01:06]} {[%emt
00:00:04]} 56. Nxb4 {[%clk 00:10:58]} {[%emt 00:00:03]} Bc7 {[%clk 00:01:11]}
{[%emt 00:00:05]} 57. Nd3 {[%clk 00:11:05]} {[%emt 00:00:02]} Kd6 {[%clk
00:01:14]} {[%emt 00:00:07]} 58. b4 {[%clk 00:11:11]} {[%emt 00:00:05]} Bb6
{[%clk 00:01:22]} {[%emt 00:00:02]} 59. Nc5 {[%clk 00:11:19]} {[%emt 00:00:02]}
Bxc5 {[%clk 00:01:30]} {[%emt 00:00:01]} 60. bxc5+ {[%clk 00:11:28]} {[%emt
00:00:01]} 1-0



[ePGN "0.1;DGT LiveChess/2.2.6"]

[Event "MČR družstev mladších žáků 2024"]
[Site "Harrachov, Czech Republic"]
[Date "2024.06.16"]
[Round "8.14"]
[White "Mauric Jan"]
[Black "Kala Jakub"]
[Result "0-1"]
[TimeControl "25+10"]
[WhiteFideId "23744200"]
[BlackFideId "23753897"]
[WhiteElo "1306"]
[BlackElo "1657"]

1. d4 {[%clk 00:25:17]} {[%emt 00:00:03]} d5 {[%clk 00:25:19]} 2. Bf4 {[%clk
00:25:25]} {[%emt 00:00:02]} Bf5 {[%clk 00:25:26]} {[%emt 00:00:02]} 3. Nf3
{[%clk 00:25:33]} {[%emt 00:00:02]} Nf6 {[%clk 00:25:34]} {[%emt 00:00:02]} 4.
e3 {[%clk 00:25:36]} {[%emt 00:00:07]} e6 {[%clk 00:25:40]} {[%emt 00:00:03]} 5.
a3 {[%clk 00:25:41]} {[%emt 00:00:05]} Bd6 {[%clk 00:24:54]} {[%emt 00:00:56]}
6. Bg3 {[%clk 00:25:33]} {[%emt 00:00:18]} O-O {[%clk 00:24:14]} {[%emt
00:00:50]} 7. c4 {[%clk 00:25:03]} {[%emt 00:00:41]} c5 {[%clk 00:22:33]}
{[%emt 00:01:51]} 8. Bxd6 {[%clk 00:21:39]} {[%emt 00:03:34]} Qxd6 {[%clk
00:22:38]} {[%emt 00:00:05]} 9. dxc5 {[%clk 00:21:23]} {[%emt 00:00:26]} Qxc5
{[%clk 00:22:15]} {[%emt 00:00:34]} 10. b4 {[%clk 00:21:27]} {[%emt 00:00:06]}
Qc7 {[%clk 00:20:26]} {[%emt 00:01:58]} 11. c5 {[%clk 00:21:11]} {[%emt
00:00:27]} Rd8 {[%clk 00:18:11]} {[%emt 00:02:25]} 12. Be2 {[%clk 00:19:03]}
{[%emt 00:02:18]} Nbd7 {[%clk 00:16:19]} {[%emt 00:02:03]} 13. O-O {[%clk
00:18:39]} {[%emt 00:00:34]} Ne5 {[%clk 00:14:51]} {[%emt 00:01:38]} 14. Nxe5
{[%clk 00:15:57]} {[%emt 00:02:51]} Qxe5 {[%clk 00:14:56]} {[%emt 00:00:05]} 15.
Qd4 {[%clk 00:15:58]} {[%emt 00:00:10]} Qc7 {[%clk 00:12:43]} {[%emt 00:02:23]}
16. Nc3 {[%clk 00:12:13]} {[%emt 00:03:55]} e5 {[%clk 00:11:20]} {[%emt
00:01:33]} 17. Qh4 {[%clk 00:10:58]} {[%emt 00:01:25]} a6 {[%clk 00:10:34]}
{[%emt 00:00:55]} 18. Rfd1 {[%clk 00:10:22]} {[%emt 00:00:46]} Rd7 {[%clk
00:08:24]} {[%emt 00:02:20]} 19. f3 {[%clk 00:04:22]} {[%emt 00:06:10]} Rad8
{[%clk 00:05:52]} {[%emt 00:02:41]} 20. e4 {[%clk 00:01:44]} {[%emt 00:02:49]}
dxe4 {[%clk 00:05:18]} {[%emt 00:00:44]} 21. fxe4 {[%clk 00:01:53]} {[%emt
00:00:02]} Rd4 {[%clk 00:04:27]} {[%emt 00:00:59]} 22. Bf3 {[%clk 00:01:27]}
{[%emt 00:00:37]} Qd7 {[%clk 00:02:56]} {[%emt 00:01:39]} 23. Qe1 {[%clk
00:01:07]} {[%emt 00:00:31]} Nxe4 {[%clk 00:01:59]} {[%emt 00:01:08]} 24. Bxe4
{[%clk 00:00:37]} {[%emt 00:00:41]} Bxe4 {[%clk 00:01:12]} {[%emt 00:00:57]} 25.
Rxd4 {[%clk 00:00:38]} {[%emt 00:00:09]} Qxd4+ {[%clk 00:01:18]} {[%emt
00:00:03]} 26. Kh1 {[%clk 00:00:46]} {[%emt 00:00:03]} Bc2 {[%clk 00:00:39]}
{[%emt 00:00:47]} 27. h3 {[%clk 00:00:29]} {[%emt 00:00:30]} h6 {[%clk
00:00:48]} {[%emt 00:00:01]} 28. Ne2 {[%clk 00:00:19]} {[%emt 00:00:19]} Qd3
{[%clk 00:00:38]} {[%emt 00:00:18]} 29. Ng1 {[%clk 00:00:20]} {[%emt 00:00:12]}
e4 {[%clk 00:00:32]} {[%emt 00:00:15]} 30. Rc1 {[%clk 00:00:17]} {[%emt
00:00:13]} Ba4 {[%clk 00:00:18]} {[%emt 00:00:22]} 31. Rc3 {[%clk 00:00:18]}
{[%emt 00:00:10]} Qd5 {[%clk 00:00:15]} {[%emt 00:00:10]} 32. Re3 {[%clk
00:00:27]} {[%emt 00:00:04]} Bc6 {[%clk 00:00:22]} {[%emt 00:00:03]} 33. Ne2
{[%clk 00:00:16]} {[%emt 00:00:22]} Qg5 {[%clk 00:00:16]} {[%emt 00:00:14]} 34.
Ng3 {[%emt 00:00:09]} Rd3 {[%clk 00:00:16]} {[%emt 00:00:10]} 35. Rxd3 {[%clk
00:00:11]} {[%emt 00:00:18]} exd3 {[%clk 00:00:23]} {[%emt 00:00:02]} 36. Qf2
{[%clk 00:00:19]} {[%emt 00:00:03]} d2 {[%clk 00:00:25]} {[%emt 00:00:08]} 0-1



[ePGN "0.1;DGT LiveChess/2.2.6"]

[Event "MČR družstev mladších žáků 2024"]
[Site "Harrachov, Czech Republic"]
[Date "2024.06.16"]
[Round "8.15"]
[White "Levchenko Alisa"]
[Black "Hujova Tess"]
[Result "0-1"]
[TimeControl "25+10"]
[WhiteFideId "23760311"]
[BlackFideId "23744936"]
[WhiteElo "1302"]
[BlackElo "1311"]

1. d4 {[%clk 00:25:18]} {[%emt 00:00:03]} e6 {[%clk 00:25:16]} {[%emt
00:00:03]} 2. e4 {[%clk 00:25:25]} {[%emt 00:00:02]} b6 {[%clk 00:25:25]}
{[%emt 00:00:01]} 3. Nf3 {[%clk 00:25:33]} {[%emt 00:00:02]} Bb7 {[%clk
00:25:34]} {[%emt 00:00:01]} 4. Bd3 {[%clk 00:25:40]} {[%emt 00:00:02]} Nf6
{[%clk 00:25:39]} {[%emt 00:00:05]} 5. Qe2 {[%clk 00:25:47]} {[%emt 00:00:04]}
Be7 {[%clk 00:25:38]} {[%emt 00:00:11]} 6. O-O {[%clk 00:25:33]} {[%emt
00:00:24]} h6 {[%clk 00:25:46]} {[%emt 00:00:02]} 7. c3 {[%clk 00:23:31]}
{[%emt 00:02:12]} O-O {[%clk 00:25:44]} {[%emt 00:00:12]} 8. e5 {[%clk
00:21:41]} {[%emt 00:02:01]} Nh7 {[%clk 00:24:57]} {[%emt 00:00:55]} 9. Nbd2
{[%clk 00:19:54]} {[%emt 00:01:57]} Ng5 {[%clk 00:24:49]} {[%emt 00:00:18]} 10.
Nxg5 {[%clk 00:18:55]} {[%emt 00:01:10]} Bxg5 {[%clk 00:24:51]} {[%emt
00:00:08]} 11. Ne4 {[%clk 00:18:31]} {[%emt 00:00:34]} Bxc1 {[%clk 00:24:42]}
{[%emt 00:00:20]} 12. Raxc1 {[%clk 00:18:30]} {[%emt 00:00:11]} Nc6 {[%clk
00:22:56]} {[%emt 00:01:56]} 13. Qg4 {[%clk 00:16:54]} {[%emt 00:01:46]} Kh8
{[%clk 00:22:09]} {[%emt 00:00:57]} 14. f4 {[%clk 00:15:11]} {[%emt 00:01:53]}
Ne7 {[%clk 00:21:24]} {[%emt 00:00:55]} 15. Qh5 {[%clk 00:13:26]} {[%emt
00:01:55]} Ng6 {[%clk 00:18:42]} {[%emt 00:02:52]} 16. Ng5 {[%clk 00:11:27]}
{[%emt 00:02:09]} Nxf4 {[%clk 00:13:28]} {[%emt 00:05:24]} 17. Rxf4 {[%clk
00:02:16]} {[%emt 00:09:21]} Qxg5 {[%clk 00:13:27]} {[%emt 00:00:11]} 18. Qxg5
{[%clk 00:01:31]} {[%emt 00:00:56]} hxg5 {[%clk 00:13:29]} {[%emt 00:00:03]} 19.
Rg4 {[%clk 00:01:11]} {[%emt 00:00:35]} f6 {[%clk 00:13:19]} {[%emt 00:00:19]}
20. exf6 {[%clk 00:00:48]} {[%emt 00:00:34]} gxf6 {[%clk 00:13:27]} {[%emt
00:00:02]} 21. Rf1 {[%clk 00:00:55]} {[%emt 00:00:03]} Kg7 {[%clk 00:13:31]}
{[%emt 00:00:05]} 22. h4 {[%clk 00:01:01]} {[%emt 00:00:05]} Kh6 {[%clk
00:13:23]} {[%emt 00:00:17]} 23. hxg5+ {[%clk 00:00:48]} {[%emt 00:00:24]} fxg5
{[%clk 00:13:27]} {[%emt 00:00:06]} 24. Be4 {[%clk 00:00:14]} {[%emt 00:00:44]}
Bxe4 {[%clk 00:13:05]} {[%emt 00:00:32]} 25. Rxe4 {[%clk 00:00:22]} {[%emt
00:00:03]} Rxf1+ {[%clk 00:13:11]} {[%emt 00:00:04]} 26. Kxf1 {[%clk 00:00:30]}
{[%emt 00:00:02]} Rf8+ {[%clk 00:13:18]} {[%emt 00:00:03]} 27. Ke2 {[%clk
00:00:37]} {[%emt 00:00:03]} Rf4 {[%clk 00:11:38]} {[%emt 00:01:50]} 28. Ke3
{[%clk 00:00:13]} {[%emt 00:00:34]} Rf1 {[%clk 00:11:26]} {[%emt 00:00:21]} 29.
Kd2 {[%clk 00:00:13]} {[%emt 00:00:11]} Rg1 {[%clk 00:11:23]} {[%emt 00:00:12]}
30. Re2 {[%clk 00:00:13]} {[%emt 00:00:12]} Kh5 {[%clk 00:11:14]} {[%emt
00:00:18]} 31. Ke3 {[%clk 00:00:21]} {[%emt 00:00:03]} Rf1 {[%clk 00:11:14]}
{[%emt 00:00:08]} 32. Rf2 {[%clk 00:00:12]} {[%emt 00:00:21]} Rxf2 {[%clk
00:11:18]} {[%emt 00:00:06]} 33. Kxf2 {[%clk 00:00:21]} {[%emt 00:00:01]} Kg4
{[%clk 00:11:21]} {[%emt 00:00:06]} 34. g3 {[%clk 00:00:17]} {[%emt 00:00:15]}
d6 {[%clk 00:11:21]} {[%emt 00:00:09]} 0-1



[ePGN "0.1;DGT LiveChess/2.2.6"]